Workbook

Sheet Доходы
A2: ОТЧЕТ ОБ ИСПОЛНЕНИИ БЮДЖЕТА | F2: КОДЫ
E3: Форма по ОКУД | F3: 0503117 | H3: C:\117M01.txt
A4: на 01.03.2017 г. | E4: Дата | F4: 01.03.2017 | H4: 01.03.2017
E5: по ОКПО | F5: 04226416 | H5: 117
A6: Наименование финансового органа: | B6: АДМИНИСТРАЦИЯ ЕФРЕМОВО-СТЕПАНОВСКОГО СЕЛЬСКОГО ПОСЕЛЕНИЯ | E6: Глава по БК | F6: 951 | H6: 3
A7: Наименование публично-правового образования: | B7: ППО Ефремово-Степановского сельского поселения Тарасовского района | E7: по ОКТМО | F7: 60653420
A8: Периодичность: месячная
A9: Единица измерения: руб. | E9: по ОКЕИ | F9: 383 | H9: 1
A10: 1. Доходы бюджета
A11: Наименование показателя | B11: Код строки | C11: Код дохода по бюджетной классификации | D11: Утвержденные бюджетные назначения | E11: Исполнено | F11: Неисполненные назначения
A18: 1 | B18: 2 | C18: 3 | D18: 4 | E18: 5 | F18: 6
A19: Доходы бюджета - всего | B19: 010 | C19: X | D19: 7824844 | E19: 679501.09 | F19: =IF(OR(D19="-",E19>=D19),"-",D19-IF(E19="-",0,E19)) -> 7145342.91
A20: в том числе:
A21: НАЛОГОВЫЕ И НЕНАЛОГОВЫЕ ДОХОДЫ | B21: 010 | C21: 000 10000000000000000 | D21: 3618500 | E21: -36423.91 | F21: =IF(OR(D21="-",E21>=D21),"-",D21-IF(E21="-",0,E21)) -> 3654923.91
A22: НАЛОГИ НА ПРИБЫЛЬ, ДОХОДЫ | B22: 010 | C22: 182 10100000000000000 | D22: 457200 | E22: 32472 | F22: =IF(OR(D22="-",E22>=D22),"-",D22-IF(E22="-",0,E22)) -> 424728
A23: Налог на доходы физических лиц | B23: 010 | C23: 182 10102000010000110 | D23: 457200 | E23: 32472 | F23: =IF(OR(D23="-",E23>=D23),"-",D23-IF(E23="-",0,E23)) -> 424728
A24: Налог на доходы физических лиц с доходов, источником которых является налоговый агент, за исключением доходов, в отношении которых исчисление и уплата налога осуществляются в соответствии со статьями 227, 2271 и 228 Налогового кодекса Российской Федерации | B24: 010 | C24: 182 10102010010000110 | D24: 407200 | E24: 32472 | F24: =IF(OR(D24="-",E24>=D24),"-",D24-IF(E24="-",0,E24)) -> 374728
A25: Налог на доходы физических лиц с доходов, источником которых является налоговый агент, за исключением доходов, в отношении которых исчисление и уплата налога осуществляются в соответствии со статьями 227, 227.1 и 228 Налогового кодекса Российской Федерации (сумма платежа (перерасчеты, недоимка и задолженность по соответствующему платежу, в том числе по отмененному)) | B25: 010 | C25: 182 10102010011000110 | D25: - | E25: 32449.85 | F25: =IF(OR(D25="-",E25>=D25),"-",D25-IF(E25="-",0,E25)) -> -
A26: Налог на доходы физических лиц с доходов, источником которых является налоговый агент, за исключением доходов, в отношении которых исчисление и уплата налога осуществляются в соответствии со статьями 227, 227.1 и 228 Налогового кодекса Российской Федерации (пени по соответствующему платежу) | B26: 010 | C26: 182 10102010012100110 | D26: - | E26: 22.15 | F26: =IF(OR(D26="-",E26>=D26),"-",D26-IF(E26="-",0,E26)) -> -
A27: Налог на доходы физических лиц с доходов, полученных от осуществления деятельности физическими лицами, зарегистрированными в качестве индивидуальных предпринимателей, нотариусов, занимающихся частной практикой, адвокатов, учредивших адвокатские кабинеты, и других лиц, занимающихся частной практикой в соответствии со статьей 227 Налогового кодекса Российской Федерации | B27: 010 | C27: 182 10102020010000110 | D27: 48000 | E27: - | F27: =IF(OR(D27="-",E27>=D27),"-",D27-IF(E27="-",0,E27)) -> -
A28: Налог на доходы физических лиц с доходов, полученных физическими лицами в соответствии со статьей 228 Налогового кодекса Российской Федерации | B28: 010 | C28: 182 10102030010000110 | D28: 2000 | E28: - | F28: =IF(OR(D28="-",E28>=D28),"-",D28-IF(E28="-",0,E28)) -> -
A29: НАЛОГИ НА СОВОКУПНЫЙ ДОХОД | B29: 010 | C29: 182 10500000000000000 | D29: 456700 | E29: - | F29: =IF(OR(D29="-",E29>=D29),"-",D29-IF(E29="-",0,E29)) -> -
A30: Единый сельскохозяйственный налог | B30: 010 | C30: 182 10503000010000110 | D30: 456700 | E30: - | F30: =IF(OR(D30="-",E30>=D30),"-",D30-IF(E30="-",0,E30)) -> -
A31: Единый сельскохозяйственный налог | B31: 010 | C31: 182 10503010010000110 | D31: 456700 | E31: - | F31: =IF(OR(D31="-",E31>=D31),"-",D31-IF(E31="-",0,E31)) -> -
A32: НАЛОГИ НА ИМУЩЕСТВО | B32: 010 | C32: 182 10600000000000000 | D32: 2591600 | E32: -70295.91 | F32: =IF(OR(D32="-",E32>=D32),"-",D32-IF(E32="-",0,E32)) -> 2661895.91
A33: Налог на имущество физических лиц | B33: 010 | C33: 182 10601000000000110 | D33: 287400 | E33: 361.33 | F33: =IF(OR(D33="-",E33>=D33),"-",D33-IF(E33="-",0,E33)) -> 287038.67
A34: Налог на имущество физических лиц, взимаемый по ставкам, применяемым к объектам налогообложения, расположенным в границах сельских поселений | B34: 010 | C34: 182 10601030100000110 | D34: 287400 | E34: 361.33 | F34: =IF(OR(D34="-",E34>=D34),"-",D34-IF(E34="-",0,E34)) -> 287038.67
A35: Налог на имущество физических лиц, взимаемый по ставкам, применяемым к объектам налогообложения, расположенным в границах сельских поселений (сумма платежа (перерасчеты, недоимка и задолженность по соответствующему платежу, в том числе по отмененному)) | B35: 010 | C35: 182 10601030101000110 | D35: - | E35: 342.73 | F35: =IF(OR(D35="-",E35>=D35),"-",D35-IF(E35="-",0,E35)) -> -
A36: Налог на имущество физических лиц, взимаемый по ставкам, применяемым к объектам налогообложения, расположенным в границах сельских поселений (пени по соответствующему платежу) | B36: 010 | C36: 182 10601030102100110 | D36: - | E36: 18.6 | F36: =IF(OR(D36="-",E36>=D36),"-",D36-IF(E36="-",0,E36)) -> -
A37: Земельный налог | B37: 010 | C37: 182 10606000000000110 | D37: 2304200 | E37: -70657.24 | F37: =IF(OR(D37="-",E37>=D37),"-",D37-IF(E37="-",0,E37)) -> 2374857.24
A38: Земельный налог с организаций | B38: 010 | C38: 182 10606030000000110 | D38: 105000 | E38: -81999.46 | F38: =IF(OR(D38="-",E38>=D38),"-",D38-IF(E38="-",0,E38)) -> 186999.46
A39: Земельный налог с организаций, обладающих земельным участком, расположенным в границах сельских поселений | B39: 010 | C39: 182 10606033100000110 | D39: 105000 | E39: -81999.46 | F39: =IF(OR(D39="-",E39>=D39),"-",D39-IF(E39="-",0,E39)) -> 186999.46
A40: Земельный налог с физических лиц | B40: 010 | C40: 182 10606040000000110 | D40: 2199200 | E40: 11342.22 | F40: =IF(OR(D40="-",E40>=D40),"-",D40-IF(E40="-",0,E40)) -> 2187857.78
A41: Земельный налог с физических лиц, обладающих земельным участком, расположенным в границах сельских поселений | B41: 010 | C41: 182 10606043100000110 | D41: 2199200 | E41: 11342.22 | F41: =IF(OR(D41="-",E41>=D41),"-",D41-IF(E41="-",0,E41)) -> 2187857.78
A42: ГОСУДАРСТВЕННАЯ ПОШЛИНА | B42: 010 | C42: 951 10800000000000000 | D42: 31500 | E42: 1400 | F42: =IF(OR(D42="-",E42>=D42),"-",D42-IF(E42="-",0,E42)) -> 30100
A43: Государственная пошлина за совершение нотариальных действий (за исключением действий, совершаемых консульскими учреждениями Российской Федерации) | B43: 010 | C43: 951 10804000010000110 | D43: 31500 | E43: 1400 | F43: =IF(OR(D43="-",E43>=D43),"-",D43-IF(E43="-",0,E43)) -> 30100
A44: Государственная пошлина за совершение нотариальных действий должностными лицами органов местного самоуправления, уполномоченными в соответствии с законодательными актами Российской Федерации на совершение нотариальных действий | B44: 010 | C44: 951 10804020010000110 | D44: 31500 | E44: 1400 | F44: =IF(OR(D44="-",E44>=D44),"-",D44-IF(E44="-",0,E44)) -> 30100
A45: Государственная пошлина за совершение нотариальных действий должностными лицами органов местного самоуправления, уполномоченными в соответствии с законодательными актами Российской Федерации на совершение нотариальных действий | B45: 010 | C45: 951 10804020011000110 | D45: - | E45: 1400 | F45: =IF(OR(D45="-",E45>=D45),"-",D45-IF(E45="-",0,E45)) -> -
A46: ДОХОДЫ ОТ ИСПОЛЬЗОВАНИЯ ИМУЩЕСТВА, НАХОДЯЩЕГОСЯ В ГОСУДАРСТВЕННОЙ И МУНИЦИПАЛЬНОЙ СОБСТВЕННОСТИ | B46: 010 | C46: 951 11100000000000000 | D46: 81500 | E46: - | F46: =IF(OR(D46="-",E46>=D46),"-",D46-IF(E46="-",0,E46)) -> -
A47: Доходы, получаемые в виде арендной либо иной платы за передачу в возмездное пользование государственного и муниципального имущества (за исключением имущества бюджетных и автономных учреждений, а также имущества государственных и муниципальных унитарных предприятий, в том числе казенных) | B47: 010 | C47: 951 11105000000000120 | D47: 81500 | E47: - | F47: =IF(OR(D47="-",E47>=D47),"-",D47-IF(E47="-",0,E47)) -> -
A48: Доходы, получаемые в виде арендной платы за земли после разграничения государственной собственности на землю, а также средства от продажи права на заключение договоров аренды указанных земельных участков (за исключением земельных участков бюджетных и автономных учреждений) | B48: 010 | C48: 951 11105020000000120 | D48: 81500 | E48: - | F48: =IF(OR(D48="-",E48>=D48),"-",D48-IF(E48="-",0,E48)) -> -
A49: Доходы, получаемые в виде арендной платы, а также средства от продажи права на заключение договоров аренды за земли, находящиеся в собственности сельских поселений (за исключением земельных участков муниципальных бюджетных и автономных учреждений) | B49: 010 | C49: 951 11105025100000120 | D49: 81500 | E49: - | F49: =IF(OR(D49="-",E49>=D49),"-",D49-IF(E49="-",0,E49)) -> -
A50: БЕЗВОЗМЕЗДНЫЕ ПОСТУПЛЕНИЯ | B50: 010 | C50: 951 20000000000000000 | D50: 4206344 | E50: 715925 | F50: =IF(OR(D50="-",E50>=D50),"-",D50-IF(E50="-",0,E50)) -> 3490419
A51: БЕЗВОЗМЕЗДНЫЕ ПОСТУПЛЕНИЯ ОТ ДРУГИХ БЮДЖЕТОВ БЮДЖЕТНОЙ СИСТЕМЫ РОССИЙСКОЙ ФЕДЕРАЦИИ | B51: 010 | C51: 951 20200000000000000 | D51: 4206344 | E51: 715925 | F51: =IF(OR(D51="-",E51>=D51),"-",D51-IF(E51="-",0,E51)) -> 3490419
A52: Дотации бюджетам бюджетной системы Российской Федерации | B52: 010 | C52: 951 20210000000000151 | D52: 3420500 | E52: 698400 | F52: =IF(OR(D52="-",E52>=D52),"-",D52-IF(E52="-",0,E52)) -> 2722100
A53: Дотации на выравнивание бюджетной обеспеченности | B53: 010 | C53: 951 20215001000000151 | D53: 3420500 | E53: 698400 | F53: =IF(OR(D53="-",E53>=D53),"-",D53-IF(E53="-",0,E53)) -> 2722100
A54: Дотации бюджетам сельских поселений на выравнивание бюджетной обеспеченности | B54: 010 | C54: 951 20215001100000151 | D54: 3420500 | E54: 698400 | F54: =IF(OR(D54="-",E54>=D54),"-",D54-IF(E54="-",0,E54)) -> 2722100
A55: Субвенции бюджетам бюджетной системы Российской Федерации | B55: 010 | C55: 951 20230000000000151 | D55: 69500 | E55: 17525 | F55: =IF(OR(D55="-",E55>=D55),"-",D55-IF(E55="-",0,E55)) -> 51975
A56: Субвенции местным бюджетам на выполнение передаваемых полномочий субъектов Российской Федерации | B56: 010 | C56: 951 20230024000000151 | D56: 200 | E56: 200 | F56: =IF(OR(D56="-",E56>=D56),"-",D56-IF(E56="-",0,E56)) -> -
A57: Субвенции бюджетам сельских поселений на выполнение передаваемых полномочий субъектов Российской Федерации | B57: 010 | C57: 951 20230024100000151 | D57: 200 | E57: 200 | F57: =IF(OR(D57="-",E57>=D57),"-",D57-IF(E57="-",0,E57)) -> -
A58: Субвенции бюджетам на осуществление первичного воинского учета на территориях, где отсутствуют военные комиссариаты | B58: 010 | C58: 951 20235118000000151 | D58: 69300 | E58: 17325 | F58: =IF(OR(D58="-",E58>=D58),"-",D58-IF(E58="-",0,E58)) -> 51975
A59: Субвенции бюджетам сельских поселений на осуществление первичного воинского учета на территориях, где отсутствуют военные комиссариаты | B59: 010 | C59: 951 20235118100000151 | D59: 69300 | E59: 17325 | F59: =IF(OR(D59="-",E59>=D59),"-",D59-IF(E59="-",0,E59)) -> 51975
A60: Иные межбюджетные трансферты | B60: 010 | C60: 951 20240000000000151 | D60: 716344 | E60: - | F60: =IF(OR(D60="-",E60>=D60),"-",D60-IF(E60="-",0,E60)) -> -
A61: Межбюджетные трансферты, передаваемые бюджетам муниципальных образований на осуществление части полномочий по решению вопросов местного значения в соответствии с заключенными соглашениями | B61: 010 | C61: 951 20240014000000151 | D61: 716344 | E61: - | F61: =IF(OR(D61="-",E61>=D61),"-",D61-IF(E61="-",0,E61)) -> -
A62: Межбюджетные трансферты, передаваемые бюджетам сельских поселений из бюджетов муниципальных районов на осуществление части полномочий по решению вопросов местного значения в соответствии с заключенными соглашениями | B62: 010 | C62: 951 20240014100000151 | D62: 716344 | E62: - | F62: =IF(OR(D62="-",E62>=D62),"-",D62-IF(E62="-",0,E62)) -> -

Sheet Расходы
A2: 2. Расходы бюджета | F2: Форма 0503117 с.2
A4: Наименование показателя | B4: Код строки | C4: Код расхода по бюджетной классификации | D4: Утвержденные бюджетные назначения | E4: Исполнено | F4: Неисполненные назначения
A12: 1 | B12: 2 | C12: 3 | D12: 4 | E12: 5 | F12: 6
A13: Расходы бюджета - всего | B13: 200 | C13: x | D13: 8874544 | E13: 634630.58 | F13: =IF(OR(D13="-",E13>=D13),"-",D13-IF(E13="-",0,E13)) -> 8239913.42
A14: в том числе:
A15: АДМИНИСТРАЦИЯ ЕФРЕМОВО-СТЕПАНОВСКОГО СЕЛЬСКОГО ПОСЕЛЕНИЯ | B15: 200 | C15: 951 0000 0000000000 0000 | D15: 8874544 | E15: 634630.58 | F15: =IF(OR(D15="-",E15>=D15),"-",D15-IF(E15="-",0,E15)) -> 8239913.42
A16: ОБЩЕГОСУДАРСТВЕННЫЕ ВОПРОСЫ | B16: 200 | C16: 951 0100 0000000000 000 | D16: 5083700 | E16: 432489.81 | F16: =IF(OR(D16="-",E16>=D16),"-",D16-IF(E16="-",0,E16)) -> 4651210.19
A17: Функционирование Правительства Российской Федерации, высших исполнительных органов государственной власти субъектов Российской Федерации, местных администраций | B17: 200 | C17: 951 0104 0000000000 000 | D17: 4688700 | E17: 423489.81 | F17: =IF(OR(D17="-",E17>=D17),"-",D17-IF(E17="-",0,E17)) -> 4265210.19
B18: 200 | C18: 951 0104 00000000000 000 | D18: 4688700 | E18: 423489.81 | F18: =IF(OR(D18="-",E18>=D18),"-",D18-IF(E18="-",0,E18)) -> 4265210.19
A19: Обеспечение деятельности Администрации Ефремово-Степановского сельского поселения | B19: 200 | C19: 951 0104 8900000000 000 | D19: 4688700 | E19: 423489.81 | F19: =IF(OR(D19="-",E19>=D19),"-",D19-IF(E19="-",0,E19)) -> 4265210.19
A20: Фонд оплаты труда государственных (муниципальных) органов | B20: 200 | C20: 951 0104 8910000110 121 | D20: 2597800 | E20: 226595.66 | F20: =IF(OR(D20="-",E20>=D20),"-",D20-IF(E20="-",0,E20)) -> 2371204.34
A21: Иные выплаты персоналу государственных (муниципальных) органов, за исключением фонда оплаты труда | B21: 200 | C21: 951 0104 8910000110 122 | D21: 231600 | E21: - | F21: =IF(OR(D21="-",E21>=D21),"-",D21-IF(E21="-",0,E21)) -> -
A22: Взносы по обязательному социальному страхованию на выплаты денежного содержания и иные выплаты работникам государственных (муниципальных) органов | B22: 200 | C22: 951 0104 8910000110 129 | D22: 784600 | E22: 48046.88 | F22: =IF(OR(D22="-",E22>=D22),"-",D22-IF(E22="-",0,E22)) -> 736553.12
A23: Прочая закупка товаров, работ и услуг для обеспечения государственных (муниципальных) нужд | B23: 200 | C23: 951 0104 8910000190 244 | D23: 964500 | E23: 148847.27 | F23: =IF(OR(D23="-",E23>=D23),"-",D23-IF(E23="-",0,E23)) -> 815652.73
A24: Уплата налога на имущество организаций и земельного налога | B24: 200 | C24: 951 0104 8910000190 851 | D24: 85900 | E24: - | F24: =IF(OR(D24="-",E24>=D24),"-",D24-IF(E24="-",0,E24)) -> -
A25: Уплата прочих налогов, сборов | B25: 200 | C25: 951 0104 8910000190 852 | D25: 10500 | E25: - | F25: =IF(OR(D25="-",E25>=D25),"-",D25-IF(E25="-",0,E25)) -> -
A26: Уплата иных платежей | B26: 200 | C26: 951 0104 8910000190 853 | D26: 13600 | E26: - | F26: =IF(OR(D26="-",E26>=D26),"-",D26-IF(E26="-",0,E26)) -> -
A27: Прочая закупка товаров, работ и услуг для обеспечения государственных (муниципальных) нужд | B27: 200 | C27: 951 0104 8990072390 244 | D27: 200 | E27: - | F27: =IF(OR(D27="-",E27>=D27),"-",D27-IF(E27="-",0,E27)) -> -
A28: Резервные фонды | B28: 200 | C28: 951 0111 0000000000 000 | D28: 5000 | E28: - | F28: =IF(OR(D28="-",E28>=D28),"-",D28-IF(E28="-",0,E28)) -> -
B29: 200 | C29: 951 0111 00000000000 000 | D29: 5000 | E29: - | F29: =IF(OR(D29="-",E29>=D29),"-",D29-IF(E29="-",0,E29)) -> -
A30: Непрограммные расходы Администрации Ефремово-Степановского сельского Ефремово-Степановского сельского поселения | B30: 200 | C30: 951 0111 9900000000 000 | D30: 5000 | E30: - | F30: =IF(OR(D30="-",E30>=D30),"-",D30-IF(E30="-",0,E30)) -> -
A31: Резервные средства | B31: 200 | C31: 951 0111 9910090080 870 | D31: 5000 | E31: - | F31: =IF(OR(D31="-",E31>=D31),"-",D31-IF(E31="-",0,E31)) -> -
A32: Другие общегосударственные вопросы | B32: 200 | C32: 951 0113 0000000000 000 | D32: 390000 | E32: 9000 | F32: =IF(OR(D32="-",E32>=D32),"-",D32-IF(E32="-",0,E32)) -> 381000
B33: 200 | C33: 951 0113 00000000000 000 | D33: 390000 | E33: 9000 | F33: =IF(OR(D33="-",E33>=D33),"-",D33-IF(E33="-",0,E33)) -> 381000
A34: Муниципальная программа Ефремово-Степановского сельского поселения "Обеспечение общественного порядка и противодействие преступности" | B34: 200 | C34: 951 0113 0200000000 000 | D34: 10000 | E34: - | F34: =IF(OR(D34="-",E34>=D34),"-",D34-IF(E34="-",0,E34)) -> -
A35: Прочая закупка товаров, работ и услуг для обеспечения государственных (муниципальных) нужд | B35: 200 | C35: 951 0113 0210020050 244 | D35: 1000 | E35: - | F35: =IF(OR(D35="-",E35>=D35),"-",D35-IF(E35="-",0,E35)) -> -
A36: Прочая закупка товаров, работ и услуг для обеспечения государственных (муниципальных) нужд | B36: 200 | C36: 951 0113 0220020060 244 | D36: 1000 | E36: - | F36: =IF(OR(D36="-",E36>=D36),"-",D36-IF(E36="-",0,E36)) -> -
A37: Прочая закупка товаров, работ и услуг для обеспечения государственных (муниципальных) нужд | B37: 200 | C37: 951 0113 0230020070 244 | D37: 8000 | E37: - | F37: =IF(OR(D37="-",E37>=D37),"-",D37-IF(E37="-",0,E37)) -> -
A38: Муниципальная программа Ефремово-Степановского сельского поселения "Муниципальная политика" | B38: 200 | C38: 951 0113 0500000000 000 | D38: 10000 | E38: - | F38: =IF(OR(D38="-",E38>=D38),"-",D38-IF(E38="-",0,E38)) -> -
A39: Прочая закупка товаров, работ и услуг для обеспечения государственных (муниципальных) нужд | B39: 200 | C39: 951 0113 0510020110 244 | D39: 10000 | E39: - | F39: =IF(OR(D39="-",E39>=D39),"-",D39-IF(E39="-",0,E39)) -> -
A40: Муниципальная программа Ефремово-Степановского сельского поселения "Информационное общество" | B40: 200 | C40: 951 0113 0600000000 000 | D40: 45000 | E40: 3000 | F40: =IF(OR(D40="-",E40>=D40),"-",D40-IF(E40="-",0,E40)) -> 42000
A41: Прочая закупка товаров, работ и услуг для обеспечения государственных (муниципальных) нужд | B41: 200 | C41: 951 0113 0610020130 244 | D41: 45000 | E41: 3000 | F41: =IF(OR(D41="-",E41>=D41),"-",D41-IF(E41="-",0,E41)) -> 42000
A42: Непрограммные расходы Администрации Ефремово-Степановского сельского Ефремово-Степановского сельского поселения | B42: 200 | C42: 951 0113 9900000000 000 | D42: 325000 | E42: 6000 | F42: =IF(OR(D42="-",E42>=D42),"-",D42-IF(E42="-",0,E42)) -> 319000
A43: Прочая закупка товаров, работ и услуг для обеспечения государственных (муниципальных) нужд | B43: 200 | C43: 951 0113 9990099990 244 | D43: 325000 | E43: 6000 | F43: =IF(OR(D43="-",E43>=D43),"-",D43-IF(E43="-",0,E43)) -> 319000
A44: НАЦИОНАЛЬНАЯ ОБОРОНА | B44: 200 | C44: 951 0200 0000000000 000 | D44: 69300 | E44: 5957.66 | F44: =IF(OR(D44="-",E44>=D44),"-",D44-IF(E44="-",0,E44)) -> 63342.34
A45: Мобилизационная и вневойсковая подготовка | B45: 200 | C45: 951 0203 0000000000 000 | D45: 69300 | E45: 5957.66 | F45: =IF(OR(D45="-",E45>=D45),"-",D45-IF(E45="-",0,E45)) -> 63342.34
B46: 200 | C46: 951 0203 00000000000 000 | D46: 69300 | E46: 5957.66 | F46: =IF(OR(D46="-",E46>=D46),"-",D46-IF(E46="-",0,E46)) -> 63342.34
A47: Обеспечение деятельности Администрации Ефремово-Степановского сельского поселения | B47: 200 | C47: 951 0203 8900000000 000 | D47: 69300 | E47: 5957.66 | F47: =IF(OR(D47="-",E47>=D47),"-",D47-IF(E47="-",0,E47)) -> 63342.34
A48: Фонд оплаты труда государственных (муниципальных) органов | B48: 200 | C48: 951 0203 8990051180 121 | D48: 53200 | E48: 4675.7 | F48: =IF(OR(D48="-",E48>=D48),"-",D48-IF(E48="-",0,E48)) -> 48524.3
A49: Взносы по обязательному социальному страхованию на выплаты денежного содержания и иные выплаты работникам государственных (муниципальных) органов | B49: 200 | C49: 951 0203 8990051180 129 | D49: 16100 | E49: 1281.96 | F49: =IF(OR(D49="-",E49>=D49),"-",D49-IF(E49="-",0,E49)) -> 14818.04
A50: НАЦИОНАЛЬНАЯ БЕЗОПАСНОСТЬ И ПРАВООХРАНИТЕЛЬНАЯ ДЕЯТЕЛЬНОСТЬ | B50: 200 | C50: 951 0300 0000000000 000 | D50: 59700 | E50: - | F50: =IF(OR(D50="-",E50>=D50),"-",D50-IF(E50="-",0,E50)) -> -
A51: Обеспечение пожарной безопасности | B51: 200 | C51: 951 0310 0000000000 000 | D51: 59700 | E51: - | F51: =IF(OR(D51="-",E51>=D51),"-",D51-IF(E51="-",0,E51)) -> -
B52: 200 | C52: 951 0310 00000000000 000 | D52: 59700 | E52: - | F52: =IF(OR(D52="-",E52>=D52),"-",D52-IF(E52="-",0,E52)) -> -
A53: Муниципальная программа Ефремово-Степановского сельского поселения "Обеспечение пожарной безопасности" | B53: 200 | C53: 951 0310 0300000000 000 | D53: 59700 | E53: - | F53: =IF(OR(D53="-",E53>=D53),"-",D53-IF(E53="-",0,E53)) -> -
A54: Прочая закупка товаров, работ и услуг для обеспечения государственных (муниципальных) нужд | B54: 200 | C54: 951 0310 0310020080 244 | D54: 59700 | E54: - | F54: =IF(OR(D54="-",E54>=D54),"-",D54-IF(E54="-",0,E54)) -> -
A55: НАЦИОНАЛЬНАЯ ЭКОНОМИКА | B55: 200 | C55: 951 0400 0000000000 000 | D55: 716344 | E55: - | F55: =IF(OR(D55="-",E55>=D55),"-",D55-IF(E55="-",0,E55)) -> -
A56: Дорожное хозяйство (дорожные фонды) | B56: 200 | C56: 951 0409 0000000000 000 | D56: 716344 | E56: - | F56: =IF(OR(D56="-",E56>=D56),"-",D56-IF(E56="-",0,E56)) -> -
B57: 200 | C57: 951 0409 00000000000 000 | D57: 716344 | E57: - | F57: =IF(OR(D57="-",E57>=D57),"-",D57-IF(E57="-",0,E57)) -> -
A58: Непрограммные расходы Администрации Ефремово-Степановского сельского Ефремово-Степановского сельского поселения | B58: 200 | C58: 951 0409 9900000000 000 | D58: 716344 | E58: - | F58: =IF(OR(D58="-",E58>=D58),"-",D58-IF(E58="-",0,E58)) -> -
A59: Прочая закупка товаров, работ и услуг для обеспечения государственных (муниципальных) нужд | B59: 200 | C59: 951 0409 9990099990 244 | D59: 716344 | E59: - | F59: =IF(OR(D59="-",E59>=D59),"-",D59-IF(E59="-",0,E59)) -> -
A60: ЖИЛИЩНО-КОММУНАЛЬНОЕ ХОЗЯЙСТВО | B60: 200 | C60: 951 0500 0000000000 000 | D60: 870200 | E60: 30099.46 | F60: =IF(OR(D60="-",E60>=D60),"-",D60-IF(E60="-",0,E60)) -> 840100.54
A61: Благоустройство | B61: 200 | C61: 951 0503 0000000000 000 | D61: 870200 | E61: 30099.46 | F61: =IF(OR(D61="-",E61>=D61),"-",D61-IF(E61="-",0,E61)) -> 840100.54
B62: 200 | C62: 951 0503 00000000000 000 | D62: 870200 | E62: 30099.46 | F62: =IF(OR(D62="-",E62>=D62),"-",D62-IF(E62="-",0,E62)) -> 840100.54
A63: Муниципальная программа Ефремово-Степановского сельского поселения "Обеспечение качественными жилищно-коммунальными услугами населения и благоустройство территории" | B63: 200 | C63: 951 0503 0100000000 000 | D63: 170200 | E63: 30099.46 | F63: =IF(OR(D63="-",E63>=D63),"-",D63-IF(E63="-",0,E63)) -> 140100.54
A64: Прочая закупка товаров, работ и услуг для обеспечения государственных (муниципальных) нужд | B64: 200 | C64: 951 0503 0110020010 244 | D64: 20000 | E64: - | F64: =IF(OR(D64="-",E64>=D64),"-",D64-IF(E64="-",0,E64)) -> -
A65: Прочая закупка товаров, работ и услуг для обеспечения государственных (муниципальных) нужд | B65: 200 | C65: 951 0503 0110020020 244 | D65: 20000 | E65: - | F65: =IF(OR(D65="-",E65>=D65),"-",D65-IF(E65="-",0,E65)) -> -
A66: Прочая закупка товаров, работ и услуг для обеспечения государственных (муниципальных) нужд | B66: 200 | C66: 951 0503 0120020040 244 | D66: 130200 | E66: 30099.46 | F66: =IF(OR(D66="-",E66>=D66),"-",D66-IF(E66="-",0,E66)) -> 100100.54
A67: Непрограммные расходы Администрации Ефремово-Степановского сельского Ефремово-Степановского сельского поселения | B67: 200 | C67: 951 0503 9900000000 000 | D67: 700000 | E67: - | F67: =IF(OR(D67="-",E67>=D67),"-",D67-IF(E67="-",0,E67)) -> -
A68: Прочая закупка товаров, работ и услуг для обеспечения государственных (муниципальных) нужд | B68: 200 | C68: 951 0503 9990099990 244 | D68: 700000 | E68: - | F68: =IF(OR(D68="-",E68>=D68),"-",D68-IF(E68="-",0,E68)) -> -
A69: КУЛЬТУРА, КИНЕМАТОГРАФИЯ | B69: 200 | C69: 951 0800 0000000000 000 | D69: 2074300 | E69: 166083.65 | F69: =IF(OR(D69="-",E69>=D69),"-",D69-IF(E69="-",0,E69)) -> 1908216.35
A70: Культура | B70: 200 | C70: 951 0801 0000000000 000 | D70: 2074300 | E70: 166083.65 | F70: =IF(OR(D70="-",E70>=D70),"-",D70-IF(E70="-",0,E70)) -> 1908216.35
B71: 200 | C71: 951 0801 00000000000 000 | D71: 2074300 | E71: 166083.65 | F71: =IF(OR(D71="-",E71>=D71),"-",D71-IF(E71="-",0,E71)) -> 1908216.35
A72: Муниципальная программа "Развитие культуры" | B72: 200 | C72: 951 0801 0400000000 000 | D72: 2074300 | E72: 166083.65 | F72: =IF(OR(D72="-",E72>=D72),"-",D72-IF(E72="-",0,E72)) -> 1908216.35
A73: Субсидии бюджетным учреждениям на финансовое обеспечение государственного (муниципального) задания на оказание государственных (муниципальных) услуг (выполнение работ) | B73: 200 | C73: 951 0801 0410000590 611 | D73: 2074300 | E73: 166083.65 | F73: =IF(OR(D73="-",E73>=D73),"-",D73-IF(E73="-",0,E73)) -> 1908216.35
A74: МЕЖБЮДЖЕТНЫЕ ТРАНСФЕРТЫ ОБЩЕГО ХАРАКТЕРА БЮДЖЕТАМ БЮДЖЕТНОЙ СИСТЕМЫ РОССИЙСКОЙ ФЕДЕРАЦИИ | B74: 200 | C74: 951 1400 0000000000 000 | D74: 1000 | E74: - | F74: =IF(OR(D74="-",E74>=D74),"-",D74-IF(E74="-",0,E74)) -> -
A75: Прочие межбюджетные трансферты общего характера | B75: 200 | C75: 951 1403 0000000000 000 | D75: 1000 | E75: - | F75: =IF(OR(D75="-",E75>=D75),"-",D75-IF(E75="-",0,E75)) -> -
B76: 200 | C76: 951 1403 00000000000 000 | D76: 1000 | E76: - | F76: =IF(OR(D76="-",E76>=D76),"-",D76-IF(E76="-",0,E76)) -> -
A77: Обеспечение деятельности Администрации Ефремово-Степановского сельского поселения | B77: 200 | C77: 951 1403 8900000000 000 | D77: 1000 | E77: - | F77: =IF(OR(D77="-",E77>=D77),"-",D77-IF(E77="-",0,E77)) -> -
A78: Иные межбюджетные трансферты | B78: 200 | C78: 951 1403 8990085010 540 | D78: 1000 | E78: - | F78: =IF(OR(D78="-",E78>=D78),"-",D78-IF(E78="-",0,E78)) -> -
A80: Результат исполнения бюджета (дефицит / профицит) | B80: 450 | C80: x | D80: -1049700 | E80: 44870.51 | F80: x

Sheet Источники
A1: Форма 0503117 с.3
A2: 3. Источники финансирования дефицита бюджета
A4: Наименование показателя | B4: Код строки | C4: Код источника финансирования дефицита бюджета по бюджетной классификации | D4: Утвержденные бюджетные назначения | E4: Исполнено | F4: Неисполненные назначения
A11: 1 | B11: 2 | C11: 3 | D11: 4 | E11: 5 | F11: 6
A12: Источники финансирования дефицита бюджета - всего | B12: 500 | C12: x | D12: 1049700 | E12: -44870.51 | F12: x
A13: в том числе:
A14: источники внутреннего финансирования бюджета | B14: 520 | C14: x | D14: - | E14: - | F14: -
A15: источники внешнего финансирования бюджета | B15: 620 | C15: x | D15: - | E15: - | F15: -
A16: Изменение остатков средств | B16: 700 | C16: *** 01000000000000000 | D16: 1049700 | E16: -44870.51 | F16: 1094570.51
A17: Изменение остатков средств на счетах по учету средств бюджета | B17: 700 | C17: *** 01050000000000000 | D17: 1049700 | E17: -44870.51 | F17: 1094570.51
A18: Изменение иных финансовых активов за счет средств, размещенных в депозиты в валюте Российской Федерации и иностранной валюте в кредитных организациях | B18: 700 | C18: *** 01060000000000000 | D18: - | E18: - | F18: -
A19: увеличение остатков средств | B19: 710 | C19: 951 01050000000000500 | D19: -7824844 | E19: -679501.09 | F19: x
A20: Изменение остатков средств на счетах по учету средств бюджетов | B20: 710 | C20: 951 01050000000000000 | D20: -7824844 | E20: -679501.09 | F20: x
A21: Увеличение прочих остатков денежных средств бюджетов сельских поселений | B21: 710 | C21: 951 01050201100000510 | D21: -7824844 | E21: -679501.09 | F21: x
A22: уменьшение остатков средств | B22: 720 | C22: 951 01050000000000600 | D22: 8874544 | E22: 634630.58 | F22: x
A23: Уменьшение прочих остатков денежных средств бюджетов сельских поселений | B23: 720 | C23: 951 01050201100000610 | D23: 8874544 | E23: 634630.58 | F23: x

Sheet ExportParams (hidden)
A1: EXPORT_SRC_KIND | B1: 5
A2: EXPORT_PARAM_SRC_KIND | B2: 3
A3: EXPORT_SRC_CODE | B3: 58037-04
